lending/lending_fUSD_20260209
["ID","MTS","AMOUNT","RATE_DAILY","PERIOD"]
[404889852,1770653040551,-500.0,0.00017989,2]
[404889853,1770653040574,-500.0,0.00017989,2]
[404889854,1770653040600,-500.0,0.00017989,2]
[404889855,1770653040624,-500.0,0.00017989,2]
[404889856,1770653040647,-500.0,0.00017989,2]
[404889857,1770653040671,-500.0,0.00017989,2]
[404889858,1770653040692,-500.0,0.00017989,2]
[404889859,1770653040715,-500.0,0.00017989,2]
[404889860,1770653040737,-10000.01,0.0001799,2]
[404889861,1770653040759,-175.05518524,0.0001799,2]
[404889862,1770653040783,-175.05518524,0.0001799,2]
[404889863,1770653040806,-151.0,0.00017997,2]
[404889864,1770653040829,-151.0,0.00017997,2]
[404889865,1770653040852,-500.0,0.00017998,2]
[404889866,1770653040874,-500.0,0.00017998,2]
[404889867,1770653040896,-500.0,0.00017999,2]
[404889868,1770653040918,-500.0,0.00017999,2]
[404889869,1770653040940,-500.0,0.00017999,2]
[404889870,1770653040965,-500.0,0.00017999,2]
[404889871,1770653040987,-500.0,0.00017999,2]
[404889872,1770653041008,-500.0,0.00017999,2]
[404889873,1770653041031,-304.20026278,0.00017999,2]
[404889874,1770653041053,-500.0,0.00017999,2]
[404889875,1770653041075,-155.8658331,0.00017999,2]
[404889876,1770653041097,-154.14062291,0.00017999,2]
[404889877,1770653041119,-437169.14631442,0.00018,2]
[404889879,1770653127949,166.66,0.0001642,2]
[404889880,1770653128297,166.66,0.00016765,2]
[404889898,1770653321102,-150.0,0.00017043,2]
[404889899,1770653321130,-166.66,0.00017111,2]
[404889900,1770653321157,-166.66,0.00017457,2]
[404889901,1770653321183,-163.10057236,0.00017725,2]
[404889902,1770653321208,-150.0,0.00017725,2]
[404889903,1770653321238,-159.70210657,0.00017725,2]
[404889904,1770653321263,-152.30636831,0.00017725,2]
[404889905,1770653321288,-158.13381435,0.00017725,2]
[404889906,1770653321313,-150.0,0.00017725,2]
[404889907,1770653321338,-179.62943936,0.00017725,2]
[404889908,1770653321365,-300.0,0.00017778,2]
[404889909,1770653321392,-300.0,0.00017778,2]
[404889910,1770653321419,-1200.0,0.00017779,2]
[404889911,1770653321445,-150.0,0.0001778,2]
[404889912,1770653321471,-200.0,0.0001778,2]
[404889913,1770653321501,-166.66,0.00017802,2]
[404889914,1770653321527,-150.0,0.00017808,2]
[404889915,1770653321555,-226.18850366,0.00017835,2]
[404889916,1770653321582,-150.0,0.00017863,2]
[404889917,1770653321611,-300.0,0.00017899,2]
[404889918,1770653321642,-1709.81208033,0.000179,2]
[404889919,1770653321671,-202.76122162,0.000179,2]
[404889920,1770653321698,-275.8575917,0.000179,2]
[404889921,1770653321725,-325.25807576,0.000179,2]
[404889922,1770653321753,-982.02764485,0.000179,2]
[404889923,1770653321780,-150.0,0.00017918,2]
[404889924,1770653321808,-150.0,0.00017972,2]
[404889925,1770653321837,-150.0,0.00017973,2]
[404889926,1770653321865,-561.50404512,0.00017989,2]
[404889927,1770653321890,-200.0,0.00017989,2]
[404889928,1770653321917,-200.0,0.00017989,2]
[404889929,1770653321943,-500.0,0.00017989,2]
[404889930,1770653321969,-300.0,0.00017994,2]
[404889931,1770653321996,-550.0,0.00017998,2]
[404889932,1770653322024,-681.22482766,0.00017999,2]
[404889933,1770653322052,-487.87229897,0.00017999,2]
[404889934,1770653322080,-500.0,0.00017999,2]
[404889935,1770653322108,-500.0,0.00017999,2]
[404889936,1770653322135,-313.94546318,0.00017999,2]
[404889937,1770653322163,-165.82061896,0.00017999,2]
[404889938,1770653322190,-557.11233745,0.00017999,2]
[404889939,1770653322219,-500.0,0.00017999,2]
[404889940,1770653322249,-500.0,0.00017999,2]
[404889941,1770653322279,-500.0,0.00017999,2]
[404889942,1770653322310,-500.0,0.00017999,2]
[404889943,1770653322342,-592.20130581,0.00017999,2]
[404889944,1770653322372,-500.0,0.00017999,2]
[404889945,1770653322402,-500.0,0.00017999,2]
[404889946,1770653322432,-500.0,0.00017999,2]
[404889947,1770653322461,-500.0,0.00017999,2]
[404889948,1770653322487,-502.61401053,0.00017999,2]
[404889949,1770653322520,-500.0,0.00017999,2]
[404889950,1770653322550,-500.0,0.00017999,2]
[404889951,1770653322581,-500.0,0.00017999,2]
[404889952,1770653322614,-500.0,0.00017999,2]
[404889953,1770653322644,-500.0,0.00017999,2]
[404889954,1770653322677,-500.0,0.00017999,2]
[404889955,1770653322709,-500.0,0.00017999,2]
[404889956,1770653322740,-500.0,0.00017999,2]
[404889957,1770653322775,-500.0,0.00017999,2]
[404889958,1770653322809,-500.0,0.00017999,2]
[404889959,1770653322842,-500.0,0.00017999,2]
[404889960,1770653322879,-500.0,0.00017999,2]
[404889961,1770653322912,-500.0,0.00017999,2]
[404889962,1770653322946,-500.0,0.00017999,2]
[404889963,1770653322977,-191.66439313,0.00017999,2]
[404889964,1770653323009,-500.0,0.00017999,2]
[404889965,1770653323041,-500.0,0.00017999,2]
[404889966,1770653323084,-500.0,0.00017999,2]
[404889967,1770653323117,-500.0,0.00017999,2]
[404889968,1770653323149,-500.0,0.00017999,2]
[404889969,1770653323349,-500.0,0.00017999,2]
[404889970,1770653323379,-386.86163314,0.00017999,2]
[404889971,1770653323405,-500.0,0.00017999,2]
[404889972,1770653323435,-201.87337434,0.00017999,2]
[404889973,1770653323462,-500.0,0.00017999,2]
[404889974,1770653323490,-500.0,0.00017999,2]
[404889975,1770653323516,-500.0,0.00017999,2]
[404889976,1770653323542,-426.15003289,0.00017999,2]
[404889977,1770653323568,-167496.39823995,0.00018,2]
[404889978,1770653369375,-953.00626592,0.000179,2]
[404889979,1770653369399,-371.86618884,0.000179,2]
[404889980,1770653369424,-202.7612216,0.000179,2]
[404889981,1770653369452,-270.70543795,0.00017999,2]
[404889982,1770653369475,-300.0,0.00017999,2]
[404889983,1770653369498,-550.0,0.00017999,2]
[404889984,1770653369521,-300.0,0.00017999,2]
[404889985,1770653369545,-357051.66088569,0.00018,2]
[404889992,1770653432124,-211.58217695,0.000179,2]
[404889993,1770653432134,-216.83871718,0.000179,2]
[404889994,1770653432144,-175.05518524,0.0001799,2]
[404889995,1770653432154,-74.97392063,0.00017999,2]
[404889996,1770653432169,-225.02607937,0.00017999,2]
[404889997,1770653432178,-62.17391087,0.00017999,2]
[404889998,1770653432189,-237.82608913,0.00017999,2]
[404889999,1770653432199,-1200.0,0.00017999,2]
[404890000,1770653432209,-1494.17391088,0.00018,2]
[404890001,1770653432220,-4749.98110813,0.00018,2]
[404890002,1770653432232,-682.80317598,0.00018,2]
[404890003,1770653432246,-19323.81146339,0.00018,2]
[404890004,1770653432257,-977.37552332,0.00018,2]
[404890005,1770653432268,-133171.79223105,0.00018,2]
[404890006,1770653432279,-797.59445327,0.00018,2]
[404890007,1770653432290,-1182.23847243,0.00018,2]
[404890008,1770653432302,-377.31590528,0.00018,2]
[404890009,1770653432313,-2170.0,0.00018,2]
[404890010,1770653432324,-1085.39999998,0.00018,2]
[404890011,1770653432336,-1091.33504491,0.00018,2]
[404890012,1770653432347,-2060.0,0.00018,2]
[404890013,1770653432358,-292356.55516839,0.00018,2]
[404890014,1770653432369,-37575.6583712,0.00018,2]
[404890015,1770653432380,-231482.0359477,0.00018,2]
[404890016,1770653432391,-1254.41808677,0.00018,2]
[404890037,1770653438288,-9654.98084225,0.00018,2]
[404890038,1770653438300,-2080.0,0.00018,2]
[404890039,1770653438311,-19265.89671864,0.00018,2]
[404890040,1770653438322,-20310.0,0.00018,2]
[404890041,1770653438335,-1606.43883667,0.00018,2]
[404890042,1770653438349,-292.212863,0.00018,2]
[404890043,1770653438361,-334.615,0.00018,2]
[404890044,1770653438373,-3999.99999999,0.00018,2]
[404890246,1770653440433,-1960.0,0.00018,2]
[404890409,1770653442123,-244631.6024135,0.00018,2]
[404890411,1770653442135,-883.15138334,0.00018,2]
[404890414,1770653442159,-380.30947352,0.00018,2]
[404890417,1770653442170,-542.688,0.00018,2]
[404890419,1770653442181,-3565.18647994,0.00018,2]
[404890421,1770653442192,-126960.61176242,0.00018,2]
[404890423,1770653442203,-13151.61818528,0.00018,2]
[404890425,1770653442213,-1965.0,0.00018,2]
[404890649,1770653444427,-1860.39881757,0.00018,2]
[404890651,1770653444440,-68578.93823183,0.00018,2]
[404890653,1770653444451,-6339.06703949,0.00018,2]
[404890656,1770653444462,-18570.00518933,0.00018,2]
[404890658,1770653444473,-290.0,0.00018,2]
[404890660,1770653444485,-261.999998,0.00018,2]
[404890677,1770653444658,-1844.40697459,0.00018,2]
[404890679,1770653444670,-1740.44292247,0.00018,2]
[404890694,1770653444828,-107.59793078,0.00018,2]
[404890707,1770653444988,-1896.77006027,0.00018,2]
[404890708,1770653445003,-293.47590332,0.00018,2]
[404890709,1770653445014,-32589.10714352,0.00018,2]
[404890710,1770653445026,-1016.49353724,0.00018,2]
[404890717,1770653446154,-295.08443176,0.00018,2]
[404890718,1770653446166,-420.60232107,0.00018,2]
[404890719,1770653446177,-19610.0,0.00018,2]
[404890720,1770653446188,-7558.76633114,0.00018,2]
[404890721,1770653446302,-417907.18280737,0.00018,2]
[404890722,1770653446313,-6930.24813163,0.00018,2]
[404890723,1770653446325,-438.81709328,0.00018,2]
[404890724,1770653446337,-6753.6,0.00018,2]
[404890725,1770653446350,-3311.80000005,0.00018,2]
[404890726,1770653446361,-2565.3,0.00018,2]
[404890727,1770653446372,-4074.12,0.00018,2]
[404890728,1770653446388,-5763.15148698,0.00018,2]
[404890729,1770653446399,-883.4800005,0.00018,2]
[404890730,1770653446426,-5632.25459061,0.00018,2]
[404890731,1770653446438,-4230.60179393,0.00018,2]
[404890743,1770653448280,500.0,0.00017,2]
[404890744,1770653464511,1777.74073709,0.0003561,30]
[404890748,1770653567670,-301.3,0.00018,3]
[404890968,1770653586319,-2329.467,0.0001764,2]
[404890969,1770653586347,-300.0,0.00017899,2]
[404890970,1770653586375,-500.0,0.000179,2]
[404890971,1770653586402,-170.533,0.000179,2]
[404891028,1770654099640,250.0,0.00015,2]
[404891029,1770654100773,300.0,0.00017,2]
[404891032,1770654321911,2523.52087607,0.00017,3]
[404891033,1770654324821,398.08280932,0.000108,2]
[404891034,1770654342089,-4217.77237558,0.00017062,2]
[404891035,1770654342275,-5000.01,0.00017062,2]
[404891036,1770654342393,-5000.01,0.00017062,2]
[404891037,1770654342525,-5000.01,0.00017062,2]
[404891038,1770654342652,-2213.49762442,0.00017062,2]
[404891040,1770654357923,957.63404777,0.00013,2]
[404891041,1770654359923,4042.37595223,8e-05,2]
[404891042,1770654359949,5000.01,8e-05,2]
[404891043,1770654359971,4238.81854536,8e-05,2]
[404891046,1770654412311,5000.00678894,0.000162,5]
[404891047,1770654423529,0.00321106,0.00015,2]
[404891048,1770654423556,5000.01,0.00015,2]
[404891049,1770654423577,2994.33355145,0.00015,2]
[404891050,1770654425819,-200.59756188,0.00017746,2]
[404891051,1770654425851,-235.32518312,0.00017787,2]
[404891052,1770654425881,-150.0,0.00017874,2]
[404891053,1770654425914,-437.77,0.00017886,2]
[404891054,1770654428283,195.0,0.00017767,2]
[404891055,1770654428415,195.0,0.00017836,2]
[404891056,1770654432980,5358.19129959,0.0001305,2]
[404891057,1770654434118,-250.0,0.00017886,2]
[404891058,1770654434148,-302.0,0.00017886,2]
[404891059,1770654449217,-174.7075795,0.00017886,2]
[404891060,1770654450776,4650.594841,0.00017,2]
[404891061,1770654450803,5000.01,0.00017,2]
[404891062,1770654450828,5000.01,0.00017,2]
[404891063,1770654450853,5000.01,0.00017,2]
[404891064,1770654450887,5000.01,0.00017,2]
[404891065,1770654450920,5000.01,0.00017,2]
[404891066,1770654450949,5000.01,0.00017,2]
[404891067,1770654450977,5000.01,0.00017,2]
[404891068,1770654451005,5000.01,0.00017,2]
[404891069,1770654451029,5000.01,0.00017,2]
[404891070,1770654451054,2204.43321041,0.00017,2]
[404891071,1770654451081,10000.01,0.00017,2]
[404891072,1770654451107,10000.01,0.00017,2]
[404891073,1770654451139,1491.15857348,0.00017,2]
[404891074,1770654459392,-1054.73,0.00017887,2]
[404891075,1770654459426,-1200.0,0.00017898,2]
[404891076,1770654459459,-300.0,0.00017898,2]
[404891077,1770654459492,-174.7075795,0.00017899,2]
[404891078,1770654459524,-300.0,0.00017899,2]
[404891079,1770654459561,-1200.0,0.00017899,2]
[404891080,1770654459598,-300.0,0.00017899,2]
[404891081,1770654459633,-391.134841,0.00017899,2]
[404891082,1770654459853,-158.865159,0.00017899,2]
[404891083,1770654459886,-181.59306848,0.000179,2]
[404891084,1770654459920,-667.28714504,0.000179,2]
[404891085,1770654459991,-2015.49074504,0.000179,2]
[404891086,1770654460053,-4030.98149008,0.000179,2]
[404891087,1770654460173,-1938.04701984,0.000179,2]
[404891088,1770654460853,-7577.86328299,0.000179,2]
[404891089,1770654462068,-3203.41089821,0.000179,2]
[404891090,1770654462107,-3593.18820358,0.000179,2]
[404891091,1770654462209,-10000.01,0.000179,2]
[404891092,1770654462376,-10000.01,0.000179,2]
[404891093,1770654462493,-10000.01,0.000179,2]
[404891094,1770654462657,-1567.09610557,0.000179,2]
[404891095,1770654462687,-844.58,0.000179,2]
[404891096,1770654462715,-176.75618032,0.000179,3]
[404891097,1770654462786,-4823.14542822,0.000179,2]
[404891098,1770654465083,-10000.01,0.000179,2]
[404891099,1770654465228,-763.88250551,0.000179,2]
[404891100,1770654465258,-188.17333529,0.000179,2]
[404891101,1770654468591,362.81702908,0.000179,2]
[404891104,1770654477248,1205.52470116,0.000179,2]
[404891105,1770654477570,2778.61502395,0.000179,2]
[404891106,1770654486681,161.28292236,0.000179,2]
[404891107,1770654487114,349.08014759,0.000179,2]
[404891108,1770654487710,200.0,0.0001634,2]
[404891109,1770654487908,639.838434,7.945e-05,2]
[404891110,1770654488839,1479.37248581,0.00017893,2]
[404891111,1770654493661,150.0,0.00017726,2]
[404891112,1770654493817,150.0,0.00017781,2]
[404891115,1770654510941,268.85646745,0.000107,2]
[404891117,1770654517990,350.511107,0.0001,2]
[404891118,1770654518015,7502.7633454,0.0001,2]
[404891119,1770654520480,403.0,0.000177,5]
[404891122,1770654523853,774.42577446,0.0001786,2]
[404891201,1770654532185,-200.0,0.00017911,2]
[404891202,1770654532212,-250.0,0.00017915,2]
[404891203,1770654532239,-300.0,0.0001792,2]
[404891204,1770654532274,-250.0,0.00017929,2]
[404891205,1770654532306,-385.99353041,0.00017965,2]
[404891206,1770654532333,-200.0,0.00017989,2]
[404891207,1770654532362,-200.0,0.00017989,2]
[404891208,1770654532390,-500.0,0.00017989,2]
[404891209,1770654532416,-14.00646959,0.00017998,2]
[404891211,1770654548407,1319.82088014,7.945e-05,2]
[404891212,1770654548433,850.50537686,7.945e-05,2]
[404891213,1770654556572,-187.37750824,0.000179,2]
[404891214,1770654556602,-985.99353041,0.00017998,2]
[404891215,1770654556633,-1000.0,0.00017998,2]
[404891216,1770654556664,-1200.0,0.00017998,2]
[404891217,1770654556694,-300.0,0.00017998,2]
[404891218,1770654556727,-1000.0,0.00017999,2]
[404891219,1770654556756,-153.2679227,0.00017999,2]
[404891220,1770654556944,-346.7320773,0.00017999,2]
[404891221,1770654556973,-257.1490003,0.00017999,2]
[404891222,1770654557005,-618.26617197,0.00017999,2]
[404891223,1770654557034,-500.0,0.00017999,2]
[404891224,1770654557064,-500.0,0.00017999,2]
[404891225,1770654557093,-648.32121275,0.00017999,2]
[404891226,1770654557124,-1863.573,0.00017999,2]
[404891227,1770654557153,-231.92707536,0.00017999,2]
[404891228,1770654557208,-68.07292464,0.00017999,2]
[404891229,1770654557238,-1063.54173058,0.00017999,5]
[404891230,1770654569141,-426.75778996,0.00017999,2]
[404891231,1770654569163,-500.0,0.00017999,2]
[404891232,1770654569187,-320.34823097,0.00017999,2]
[404891233,1770654569209,-500.0,0.00017999,2]
[404891234,1770654569232,-500.0,0.00017999,2]
[404891235,1770654569255,-477.8791023,0.00017999,2]
[404891236,1770654569280,-500.0,0.00017999,2]
[404891237,1770654569303,-500.0,0.00017999,2]
[404891238,1770654569331,-500.0,0.00017999,2]
[404891239,1770654569355,-500.0,0.00017999,2]
[404891240,1770654569379,-500.0,0.00017999,2]
[404891241,1770654569404,-171.24797077,0.00017999,2]
[404891242,1770654578906,1748.74537159,0.000179,2]
[404891243,1770654583794,218.28,0.000179,2]
[404891244,1770654587780,5769.75531797,0.000179,2]
[404891245,1770654587804,5133.74479566,0.000179,2]
[404891246,1770654593060,1163.38,0.00017984,2]
[404891247,1770654593666,1163.38,0.00024728,120]
[404891248,1770654593900,1163.38,0.00026976,120]
[404891249,1770654601592,1200.0,0.00017998,2]
[404891250,1770654601626,300.0,0.00017998,2]
[404891251,1770654601661,300.0,0.00017998,2]
[404891252,1770654601812,550.0,0.00017998,2]
[404891253,1770654602836,300.0,0.00017998,2]
[404891255,1770654604288,304.0,0.00017999,2]
[404891256,1770654606004,251.99,0.0001799,2]
[404891257,1770654606233,251.99,0.0001799,2]
[404891258,1770654606448,244.90520434,0.0001799,2]
[404891259,1770654606475,7.08479566,0.0001799,2]
[404891260,1770654606668,251.99,0.0001799,2]
[404891261,1770654606872,251.99,0.0001799,2]
[404891262,1770654608406,9488.94520434,0.0001799,2]
[404891263,1770654608433,9509.10479566,0.0001799,2]
[404891264,1770654608478,490.90520434,0.0001799,2]
[404891265,1770654608502,10000.01,0.0001799,2]
[404891266,1770654608527,8507.13479566,0.0001799,2]
[404891267,1770654618740,193.67923825,0.0001799,2]
[404891274,1770654631318,-328.75202923,0.00017999,2]
[404891278,1770654631329,-500.0,0.00017999,2]
[404891280,1770654631340,-500.0,0.00017999,2]
[404891282,1770654631351,-500.0,0.00017999,2]
[404891284,1770654631361,-85.27982336,0.00017999,2]
[404891285,1770654631374,-414.72017664,0.00017999,2]
[404891286,1770654631384,-500.0,0.00017999,2]
[404891287,1770654631396,-500.0,0.00017999,2]
[404891288,1770654631406,-500.0,0.00017999,2]
[404891289,1770654631417,-500.0,0.00017999,2]
[404891290,1770654631427,-103.80142435,0.00017999,2]
[404891291,1770654631443,-396.19857565,0.00017999,2]
[404891292,1770654631454,-500.0,0.00017999,2]
[404891293,1770654631465,-500.0,0.00017999,2]
[404891294,1770654631476,-500.0,0.00017999,2]
[404891295,1770654631487,-500.0,0.00017999,2]
[404891296,1770654631497,-500.0,0.00017999,2]
[404891297,1770654631507,-372.41397417,0.00017999,2]
[404891298,1770654631773,-127.58602583,0.00017999,2]
[404891299,1770654631783,-500.0,0.00017999,2]
[404891300,1770654631794,-500.0,0.00017999,2]
[404891301,1770654631804,-500.0,0.00017999,2]
[404891302,1770654631815,-500.0,0.00017999,2]
[404891303,1770654631826,-500.0,0.00017999,2]
[404891304,1770654631837,-500.0,0.00017999,2]
[404891305,1770654631847,-345.30289558,0.00017999,2]
[404891306,1770654631860,-154.69710442,0.00017999,2]
[404891307,1770654631870,-230.30582814,0.00017999,2]
[404891308,1770654631886,-269.69417186,0.00017999,2]
[404891309,1770654631896,-34.18772784,0.00017999,2]
[404891310,1770654631909,-465.81227216,0.00017999,2]
[404891311,1770654631919,-500.0,0.00017999,2]
[404891312,1770654631929,-500.0,0.00017999,2]
[404891313,1770654631939,-500.0,0.00017999,2]
[404891314,1770654631950,-500.0,0.00017999,2]
[404891315,1770654631959,-500.0,0.00017999,2]
[404891316,1770654631969,-500.0,0.00017999,2]
[404891317,1770654631979,-500.0,0.00017999,2]
[404891318,1770654631990,-500.0,0.00017999,2]
[404891319,1770654632002,-500.0,0.00017999,2]
[404891320,1770654632011,-500.0,0.00017999,2]
[404891321,1770654632021,-500.0,0.00017999,2]
[404891322,1770654632031,-500.0,0.00017999,2]
[404891323,1770654632041,-500.0,0.00017999,2]
[404891324,1770654632051,-500.0,0.00017999,2]
[404891325,1770654632061,-500.0,0.00017999,2]
[404891326,1770654632070,-500.0,0.00017999,2]
[404891327,1770654632081,-500.0,0.00017999,2]
[404891329,1770654632091,-500.0,0.00017999,2]
[404891331,1770654632101,-500.0,0.00017999,2]
[404891333,1770654632111,-500.0,0.00017999,2]
[404891335,1770654632120,-500.0,0.00017999,2]
[404891337,1770654632130,-500.0,0.00017999,2]
[404891339,1770654632139,-500.0,0.00017999,2]
[404891341,1770654632148,-500.0,0.00017999,2]
[404891342,1770654632158,-500.0,0.00017999,2]
[404891344,1770654632167,-500.0,0.00017999,2]
[404891346,1770654632176,-500.0,0.00017999,2]
[404891347,1770654632194,-500.0,0.00017999,2]
[404891348,1770654632206,-500.0,0.00017999,2]
[404891349,1770654632215,-500.0,0.00017999,2]
[404891350,1770654632225,-500.0,0.00017999,2]
[404891351,1770654632234,-500.0,0.00017999,2]
[404891352,1770654632243,-500.0,0.00017999,2]
[404891353,1770654632253,-500.0,0.00017999,2]
[404891354,1770654632262,-500.0,0.00017999,2]
[404891355,1770654632273,-500.0,0.00017999,2]
[404891356,1770654632282,-500.0,0.00017999,2]
[404891357,1770654632292,-500.0,0.00017999,2]
[404891358,1770654632303,-500.0,0.00017999,2]
[404891359,1770654632313,-447.09134541,0.00017999,2]
[404891360,1770654632324,-500.0,0.00017999,2]
[404891361,1770654632334,-500.0,0.00017999,2]
[404891362,1770654632345,-500.0,0.00017999,2]
[404891363,1770654632354,-500.0,0.00017999,2]
[404891364,1770654632363,-500.0,0.00017999,2]
[404891365,1770654632373,-500.0,0.00017999,2]
[404891366,1770654632382,-500.0,0.00017999,2]
[404891367,1770654632391,-500.0,0.00017999,2]
[404891368,1770654632400,-500.0,0.00017999,2]
[404891369,1770654632411,-500.0,0.00017999,2]
[404891370,1770654632421,-500.0,0.00017999,2]
[404891371,1770654632431,-500.0,0.00017999,2]
[404891372,1770654632441,-500.0,0.00017999,2]
[404891373,1770654632453,-500.0,0.00017999,2]
[404891374,1770654632462,-300.0,0.00017999,2]
[404891375,1770654632473,-500.0,0.00017999,2]
[404891376,1770654632483,-500.0,0.00017999,2]
[404891377,1770654632493,-500.0,0.00017999,2]
[404891378,1770654632503,-500.0,0.00017999,2]
[404891379,1770654632513,-250.0,0.00017999,2]
[404891380,1770654632522,-500.0,0.00017999,2]
[404891381,1770654632531,-312.4997366,0.00017999,2]
[404891382,1770654632541,-20092.4621421,0.00018,2]
[404891383,1770654632554,-23328.64897626,0.00018,2]
[404891384,1770654632565,-7078.3986389,0.00018,2]
[404891385,1770654632588,-422.81516774,0.00018,2]
[404891386,1770654632599,-610.53759736,0.00018,2]
[404891387,1770654632611,-7292.09076503,0.00018,2]
[404891388,1770654637361,-307.92957538,0.00018,2]
[404891389,1770654637468,-1289.58302166,0.00018,2]
[404891390,1770654637479,-1442209.10222986,0.00018,2]
[404891391,1770654637489,-187.47,0.00018,2]
[404891392,1770654637498,-10000.0,0.00018,2]
[404891393,1770654637508,-1000.499999,0.00018,2]
[404891394,1770654637517,-1473.7137779,0.00018,2]
[404891395,1770654637527,-250.55,0.00018,2]
[404891396,1770654637536,-500.0,0.00018,2]
[404891397,1770654637546,-12128503.18739734,0.00018,2]
[404891398,1770654637557,-3424.37572502,0.00018,2]
[404891399,1770654637568,-20918.79592586,0.00018,2]
[404891400,1770654637579,-754.07848955,0.00018,2]
[404891401,1770654637610,-2188.98332652,0.00018,2]
[404891547,1770654639595,-974.04958776,0.00018,2]
[404891548,1770654639810,-2316.21,0.00018,2]
[404891550,1770654644066,1299.19596609,0.000179,2]
[404891551,1770654644090,10000.01,0.000179,2]
[404891552,1770654644114,10000.01,0.000179,2]
[404891553,1770654644138,10000.01,0.000179,2]
[404891554,1770654644163,10000.01,0.000179,2]
[404891555,1770654644191,10000.01,0.000179,2]
[404891556,1770654644217,10000.01,0.000179,2]
[404891557,1770654644242,10000.01,0.000179,2]
[404891558,1770654644265,10000.01,0.000179,2]
[404891559,1770654644289,10000.01,0.000179,2]
[404891561,1770654645625,-2790.4119159,0.000179,2]
[404891563,1770654645918,-5315.1,0.000179,2]
[404891564,1770654645931,-2436.56785435,0.000179,2]
[404891565,1770654645942,-44425.83844348,0.000179,2]
[404891566,1770654645953,-97767.28265954,0.000179,2]
[404891567,1770654645964,-7572.97985878,0.00018,2]
[404891568,1770654645975,-459.58986104,0.00018,2]
[404891570,1770654646407,-2681.09432384,0.00018,2]
[404891601,1770654647003,-461.32612435,0.00018,2]
[404891602,1770654647015,-1203.55824115,0.00018,2]
[404891603,1770654647026,-747950.46336673,0.00018,2]
[404891604,1770654647048,-179627.99239397,0.00018,2]
[404891607,1770654659884,-365.68519109,0.000179,2]
[404891608,1770654660842,30000.0,0.00033979,30]
[404891609,1770654661459,300.0,0.00017998,2]
[404891610,1770654661670,8968.63961782,0.0001783,2]
[404891611,1770654661885,10000.01,0.0001783,2]
[404891612,1770654661909,10000.01,0.0001783,2]
[404891613,1770654661933,10000.01,0.0001783,2]
[404891614,1770654661956,10000.01,0.0001783,2]
[404891615,1770654661981,10000.01,0.0001783,2]
[404891616,1770654662007,4430.289633,0.0001783,2]
[404891617,1770654665700,151.0,0.00014634,2]
[404891618,1770654669866,500.0,0.00017908,2]
[404891619,1770654671107,300.0,0.00017999,2]
[404891620,1770654680324,150.0,0.00017973,2]
[404891621,1770654681676,150.0,0.00017973,2]
[404891622,1770654683574,4318.720367,0.000179,2]
[404891623,1770654683599,10000.01,0.000179,2]
[404891624,1770654683623,10000.01,0.000179,2]
[404891625,1770654683646,10000.01,0.000179,2]
[404891626,1770654683669,7592.33650008,0.000179,2]
[404891629,1770654693188,-1716.877,0.0001764,2]
[404891630,1770654698082,1424.62144858,0.000179,2]